fUSD/lending_fUSD_20240927
["ID","MTS","AMOUNT","RATE_DAILY","PERIOD"]
[339344849,1727455909677,-500.0,0.0001178,2]
[339344850,1727455909687,-4418.92,0.0001178,2]
[339344851,1727455909696,-946.27,0.0001178,2]
[339344852,1727455909707,-910.64,0.0001178,2]
[339344853,1727455909718,-500.0,0.0001178,2]
[339344854,1727455909727,-1584.82,0.0001178,2]
[339344855,1727455909737,-2199.43,0.0001178,2]
[339344856,1727455909748,-500.0,0.0001178,2]
[339344857,1727455909759,-4418.92,0.0001178,2]
[339344858,1727455909769,-946.27,0.0001178,2]
[339344859,1727455909779,-910.64,0.0001178,2]
[339344860,1727455909789,-500.0,0.0001178,2]
[339344861,1727455909799,-1584.82,0.0001178,2]
[339344862,1727455909808,-2199.43,0.0001178,2]
[339344863,1727455909818,-500.0,0.0001178,2]
[339344864,1727455909828,-946.27,0.0001178,2]
[339344865,1727455909838,-4418.92,0.0001178,2]
[339344866,1727455909848,-500.0,0.0001178,2]
[339344867,1727455909857,-910.64,0.0001178,2]
[339344868,1727455909867,-2199.43,0.0001178,2]
[339344869,1727455909877,-1584.82,0.0001178,2]
[339344870,1727455909887,-500.0,0.0001178,2]
[339344871,1727455909897,-500.0,0.0001178,2]
[339344872,1727455909907,-308.98641237,0.0001178,2]
[339344873,1727455909918,-500.0,0.0001178,2]
[339344874,1727455909928,-4418.92,0.0001178,2]
[339344875,1727455909937,-946.27,0.0001178,2]
[339344876,1727455909947,-910.65700579,0.0001178,2]
[339344877,1727455909958,-2199.43,0.0001178,2]
[339344878,1727455909968,-1584.82,0.0001178,2]
[339344879,1727455909978,-500.0,0.0001178,2]
[339344880,1727455909988,-946.27,0.0001178,2]
[339344881,1727455909998,-500.0,0.0001178,2]
[339344882,1727455910007,-2199.43,0.0001178,2]
[339344883,1727455910018,-1584.82,0.0001178,2]
[339344884,1727455910028,-4418.92,0.0001178,2]
[339344885,1727455910038,-502.84154186,0.0001178,2]
[339344886,1727455910048,-500.0,0.0001178,2]
[339344887,1727455910058,-500.0,0.0001178,2]
[339344888,1727455910069,-946.27,0.0001178,2]
[339344889,1727455910078,-1584.82,0.0001178,2]
[339344890,1727455910088,-2199.43,0.0001178,2]
[339344891,1727455910098,-946.27,0.0001178,2]
[339344892,1727455910108,-500.0,0.0001178,2]
[339344893,1727455910117,-4418.92,0.0001178,2]
[339344894,1727455910127,-1584.82,0.0001178,2]
[339344895,1727455910137,-500.0,0.0001178,2]
[339344896,1727455910147,-946.27,0.0001178,2]
[339344897,1727455910157,-502.25682613,0.0001178,2]
[339344898,1727455910167,-4418.92,0.0001178,2]
[339344899,1727455910176,-1584.82,0.0001178,2]
[339344900,1727455910186,-2199.43,0.0001178,2]
[339344901,1727455910195,-500.0,0.0001178,2]
[339344902,1727455910206,-946.32923739,0.0001178,2]
[339344903,1727455910222,-4418.92,0.0001178,2]
[339344904,1727455910232,-2199.43,0.0001178,2]
[339344905,1727455910241,-1584.82,0.0001178,2]
[339344906,1727455910252,-4811.45,0.0001178,2]
[339344907,1727455910265,-500.0,0.0001178,2]
[339344908,1727455910274,-2199.43,0.0001178,2]
[339344909,1727455910285,-4811.45,0.0001178,2]
[339344910,1727455910294,-4418.92,0.0001178,2]
[339344911,1727455910307,-1584.82,0.0001178,2]
[339344912,1727455910317,-500.0,0.0001178,2]
[339344913,1727455910327,-2199.43,0.0001178,2]
[339344914,1727455910337,-4811.45,0.0001178,2]
[339344915,1727455910347,-4418.92,0.0001178,2]
[339344916,1727455910357,-500.0,0.0001178,2]
[339344917,1727455910367,-500.0,0.0001178,2]
[339344918,1727455910377,-1584.82,0.0001178,2]
[339344919,1727455910387,-2199.43,0.0001178,2]
[339344920,1727455910396,-4811.45,0.0001178,2]
[339344921,1727455910406,-500.0,0.0001178,2]
[339344922,1727455910417,-303.04840336,0.0001178,2]
[339344923,1727455910428,-2199.43,0.0001178,2]
[339344924,1727455910438,-4811.45,0.0001178,2]
[339344925,1727455910447,-1584.82,0.0001178,2]
[339344926,1727455910459,-500.0,0.0001178,2]
[339344927,1727455910469,-4419.03310702,0.0001178,2]
[339344928,1727455910479,-2199.43,0.0001178,2]
[339344929,1727455910488,-4811.45,0.0001178,2]
[339344930,1727455910498,-500.0,0.0001178,2]
[339344931,1727455910509,-2199.43,0.0001178,2]
[339344932,1727455910519,-4811.45,0.0001178,2]
[339344933,1727455910528,-1584.82,0.0001178,2]
[339344934,1727455910538,-4191.87,0.0001178,2]
[339344935,1727455910547,-500.0,0.0001178,2]
[339344936,1727455910557,-1875.32334436,0.0001178,2]
[339344937,1727455910583,-324.10665564,0.0001178,2]
[339344938,1727455910593,-1495.89334212,0.0001178,2]
[339344939,1727455910616,-88.92665788,0.0001178,2]
[339344940,1727455910626,-185.43888212,0.0001178,2]
[339344941,1727455910650,-4626.01111788,0.0001178,2]
[339344942,1727455910659,-138.58888211,0.0001178,2]
[339344943,1727455910671,-334.18860423,0.0001178,2]
[339344944,1727455910682,-3719.09251366,0.0001178,2]
[339344945,1727455910691,-500.0,0.0001178,2]
[339344946,1727455910703,-2199.43,0.0001178,2]
[339344947,1727455910713,-1584.82,0.0001178,2]
[339344948,1727455910723,-212.15662031,0.0001178,2]
[339344949,1727455910732,-4811.45,0.0001178,2]
[339344950,1727455910742,-500.0,0.0001178,2]
[339344951,1727455910752,-4191.87,0.0001178,2]
[339344952,1727455910763,-500.0,0.0001178,2]
[339344953,1727455910773,-2199.43,0.0001178,2]
[339344954,1727455910782,-4811.45,0.0001178,2]
[339344955,1727455910792,-500.0,0.0001178,2]
[339344956,1727455910872,-832.60608518,0.0001178,2]
[339344957,1727455910885,-3359.26391482,0.0001178,2]
[339344958,1727455910896,-1584.82,0.0001178,2]
[339344959,1727455910907,-500.0,0.0001178,2]
[339344960,1727455910917,-1490.57,0.0001178,2]
[339344961,1727455910927,-3417.93263857,0.0001178,2]
[339344962,1727455910943,-1289.90576999,0.0001178,2]
[339344963,1727455910956,-103.61159144,0.0001178,2]
[339344964,1727455910966,-326.71808101,0.0001178,2]
[339344965,1727455910975,-1584.93823823,0.0001178,2]
[339344966,1727455910985,-502.32655445,0.0001178,2]
[339344967,1727455910994,-1054.00650903,0.0001178,2]
[339344968,1727455911006,-436.56349097,0.0001178,2]
[339344969,1727455911016,-4811.45,0.0001178,2]
[339344970,1727455911027,-683.66106902,0.0001178,2]
[339344971,1727455911046,-3508.20893098,0.0001178,2]
[339344972,1727455911056,-1490.57,0.0001178,2]
[339344973,1727455911066,-2199.43,0.0001178,2]
[339344974,1727455911076,-4811.45,0.0001178,2]
[339344975,1727455911086,-500.0,0.0001178,2]
[339344976,1727455911097,-500.0,0.0001178,2]
[339344977,1727455911107,-247.21838921,0.0001178,2]
[339344978,1727455911120,-514.97161079,0.0001178,2]
[339344979,1727455911130,-4191.87,0.0001178,2]
[339344980,1727455911140,-500.0,0.0001178,2]
[339344981,1727455911150,-1490.57,0.0001178,2]
[339344982,1727455911160,-1061.91133878,0.0001178,2]
[339344983,1727455911171,-1137.51866122,0.0001178,2]
[339344984,1727455911182,-89.14283426,0.0001178,2]
[339344985,1727455911195,-1730.32425122,0.0001178,2]
[339344986,1727455911209,-315.3343428,0.0001178,2]
[339344987,1727455911231,-1330.21729574,0.0001178,2]
[339344988,1727455911242,-1346.43127598,0.0001178,2]
[339344989,1727455911253,-419.28372402,0.0001178,2]
[339344990,1727455911571,-150.0,0.00011706,2]
[339344991,1727455911581,-150.0,0.00011706,2]
[339344992,1727455911591,-80.71627598,0.0001178,2]
[339344993,1727455911600,-353.49670258,0.0001178,2]
[339344994,1727455911611,-146.50329742,0.0001178,2]
[339344995,1727455911621,-325.01677853,0.0001178,2]
[339344996,1727455911632,-437.17322147,0.0001178,2]
[339344997,1727455911641,-4191.87,0.0001178,2]
[339344998,1727455911651,-500.0,0.0001178,2]
[339344999,1727455911660,-1490.57,0.0001178,2]
[339345000,1727455911670,-4811.45,0.0001178,2]
[339345001,1727455911679,-500.0,0.0001178,2]
[339345002,1727455911688,-2199.43,0.0001178,2]
[339345003,1727455911697,-762.19,0.0001178,2]
[339345004,1727455911708,-500.0,0.0001178,2]
[339345005,1727455911717,-4191.87,0.0001178,2]
[339345006,1727455911727,-500.0,0.0001178,2]
[339345007,1727455911736,-1490.57,0.0001178,2]
[339345008,1727455911746,-4811.45,0.0001178,2]
[339345009,1727455911756,-500.0,0.0001178,2]
[339345010,1727455911766,-762.19,0.0001178,2]
[339345011,1727455911775,-500.75916186,0.0001178,2]
[339345012,1727455911784,-4191.87,0.0001178,2]
[339345013,1727455911794,-1490.57,0.0001178,2]
[339345014,1727455911803,-500.0,0.0001178,2]
[339345015,1727455911812,-762.19,0.0001178,2]
[339345016,1727455911822,-2199.43,0.0001178,2]
[339345017,1727455911831,-302.65424162,0.0001178,2]
[339345018,1727455911841,-1490.57,0.0001178,2]
[339345019,1727455911850,-4811.45,0.0001178,2]
[339345020,1727455911859,-4191.87,0.0001178,2]
[339345021,1727455911869,-1490.57,0.0001178,2]
[339345022,1727455911878,-4811.45,0.0001178,2]
[339345023,1727455911888,-2199.43,0.0001178,2]
[339345024,1727455911897,-762.19,0.0001178,2]
[339345025,1727455911907,-500.0,0.0001178,2]
[339345026,1727455911916,-4191.87,0.0001178,2]
[339345027,1727455911926,-2199.55697569,0.0001178,2]
[339345028,1727455911935,-4811.45,0.0001178,2]
[339345029,1727455911945,-500.0,0.0001178,2]
[339345030,1727455911956,-1394.03,0.0001178,2]
[339345031,1727455911965,-500.0,0.0001178,2]
[339345032,1727455911975,-1490.57,0.0001178,2]
[339345033,1727455911984,-500.0,0.0001178,2]
[339345034,1727455911994,-762.19,0.0001178,2]
[339345035,1727455912003,-4191.87,0.0001178,2]
[339345036,1727455912012,-4811.45,0.0001178,2]
[339345037,1727455912022,-469.31056312,0.0001178,2]
[339345038,1727455912031,-1394.03,0.0001178,2]
[339345039,1727455912042,-500.0,0.0001178,2]
[339345040,1727455912051,-762.19,0.0001178,2]
[339345041,1727455912060,-500.0,0.0001178,2]
[339345042,1727455912070,-1490.57,0.0001178,2]
[339345043,1727455912081,-500.0,0.0001178,2]
[339345044,1727455912091,-4191.87,0.0001178,2]
[339345045,1727455912100,-4811.45,0.0001178,2]
[339345046,1727455912110,-1394.03,0.0001178,2]
[339345047,1727455912120,-1490.57,0.0001178,2]
[339345048,1727455912129,-500.0,0.0001178,2]
[339345049,1727455912139,-762.19,0.0001178,2]
[339345050,1727455912149,-2093.95,0.0001178,2]
[339345051,1727455912158,-500.0,0.0001178,2]
[339345052,1727455912168,-4191.87,0.0001178,2]
[339345053,1727455912177,-4811.45,0.0001178,2]
[339345054,1727455912187,-492.90585138,0.0001178,2]
[339345055,1727455912196,-1394.03,0.0001178,2]
[339345056,1727455912205,-2093.95,0.0001178,2]
[339345057,1727455912215,-500.0,0.0001178,2]
[339345058,1727455912224,-500.0,0.0001178,2]
[339345059,1727455912234,-762.19,0.0001178,2]
[339345060,1727455912243,-500.0,0.0001178,2]
[339345061,1727455912254,-1490.57,0.0001178,2]
[339345062,1727455912264,-4191.87,0.0001178,2]
[339345063,1727455912273,-4811.45,0.0001178,2]
[339345064,1727455912282,-1394.03,0.0001178,2]
[339345065,1727455912292,-65318.54,0.0001178,2]
[339345066,1727455912302,-500.0,0.0001178,2]
[339345067,1727455912312,-500.0,0.0001178,2]
[339345068,1727455912322,-2093.95,0.0001178,2]
[339345069,1727455912333,-762.19,0.0001178,2]
[339345070,1727455912343,-500.0,0.0001178,2]
[339345071,1727455912352,-500.0,0.0001178,2]
[339345072,1727455912361,-1490.57,0.0001178,2]
[339345073,1727455912370,-4811.61632886,0.0001178,2]
[339345074,1727455912380,-1394.03,0.0001178,2]
[339345075,1727455912389,-65318.54,0.0001178,2]
[339345076,1727455912398,-500.0,0.0001178,2]
[339345077,1727455912407,-2093.95,0.0001178,2]
[339345078,1727455912417,-500.0,0.0001178,2]
[339345079,1727455912425,-4191.87,0.0001178,2]
[339345080,1727455912435,-500.0,0.0001178,2]
[339345081,1727455912444,-762.19,0.0001178,2]
[339345082,1727455912455,-500.0,0.0001178,2]
[339345083,1727455912464,-501.98465584,0.0001178,2]
[339345084,1727455912473,-65318.54,0.0001178,2]
[339345085,1727455912483,-500.0,0.0001178,2]
[339345086,1727455912492,-1394.03,0.0001178,2]
[339345087,1727455912502,-500.0,0.0001178,2]
[339345088,1727455912511,-500.0,0.0001178,2]
[339345089,1727455912520,-1490.57,0.0001178,2]
[339345090,1727455912529,-500.0,0.0001178,2]
[339345091,1727455912538,-2093.95,0.0001178,2]
[339345092,1727455912550,-762.19,0.0001178,2]
[339345093,1727455912560,-4191.87,0.0001178,2]
[339345094,1727455912569,-500.0,0.0001178,2]
[339345095,1727455912579,-53995.08147073,0.0001178,2]
[339345096,1727455912602,-11323.45852927,0.0001178,2]
[339345097,1727455912613,-500.0,0.0001178,2]
[339345098,1727455912624,-1394.03,0.0001178,2]
[339345099,1727455912633,-500.0,0.0001178,2]
[339345100,1727455912642,-1412.28152036,0.0001178,2]
[339345101,1727455912654,-78.28847964,0.0001178,2]
[339345102,1727455912665,-762.19,0.0001178,2]
[339345103,1727455912674,-4191.87,0.0001178,2]
[339345104,1727455912685,-65318.54,0.0001178,2]
[339345105,1727455912697,-2093.95,0.0001178,2]
[339345106,1727455912707,-1490.57,0.0001178,2]
[339345107,1727455912716,-500.0,0.0001178,2]
[339345108,1727455912725,-500.0,0.0001178,2]
[339345109,1727455912734,-500.0,0.0001178,2]
[339345110,1727455912744,-762.19,0.0001178,2]
[339345111,1727455912753,-500.0,0.0001178,2]
[339345112,1727455912762,-911.03263696,0.0001178,2]
[339345113,1727455912774,-482.99736304,0.0001178,2]
[339345114,1727455912783,-562.14263696,0.0001178,2]
[339345115,1727455912794,-641.85958326,0.0001178,2]
[339345116,1727455912806,-793.114995,0.0001178,2]
[339345117,1727455912828,-536.28001313,0.0001178,2]
[339345118,1727455912841,-1658.47277165,0.0001178,2]
[339345119,1727455912850,-2093.95,0.0001178,2]
[339345120,1727455912859,-26247.57722835,0.0001178,2]
[339345121,1727455912872,-392.857998,0.0001178,2]
[339345122,1727455912883,-659.44059965,0.0001178,2]
[339345123,1727455912905,-150.0,0.00011706,2]
[339345124,1727455912915,-1907.28,0.0001178,2]
[339345125,1727455912925,-10386.38,0.0001178,2]
[339345126,1727455912937,-5203.47580105,0.0001178,2]
[339345127,1727455912948,-647.46735558,0.0001178,2]
[339345128,1727455913145,-827.37773051,0.0001178,2]
[339345129,1727455913155,-302.23,0.0001178,2]
[339345130,1727455913166,-300.1,0.0001178,2]
[339345131,1727455913177,-307.38558639,0.0001178,2]
[339345132,1727455913188,-274.264,0.0001178,2]
[339345133,1727455913198,-309.865,0.0001178,2]
[339345134,1727455913210,-17552.83870047,0.0001178,2]
[339345135,1727455913219,-92.78750853,0.0001178,2]
[339345136,1727455913230,-407.21249147,0.0001178,2]
[339345137,1727455913239,-500.0,0.0001178,2]
[339345138,1727455913248,-762.19,0.0001178,2]
[339345139,1727455913261,-1490.57,0.0001178,2]
[339345140,1727455913270,-500.0,0.0001178,2]
[339345141,1727455913279,-4191.87,0.0001178,2]
[339345142,1727455913288,-2093.95,0.0001178,2]
[339345143,1727455913298,-500.0,0.0001178,2]
[339345144,1727455913307,-762.19,0.0001178,2]
[339345145,1727455913316,-1490.57,0.0001178,2]
[339345146,1727455913324,-1394.03,0.0001178,2]
[339345147,1727455913335,-2093.95,0.0001178,2]
[339345148,1727455913344,-400.43618842,0.0001178,2]
[339345149,1727455913357,-3791.43381158,0.0001178,2]
[339345150,1727455913366,-500.0,0.0001178,2]
[339345151,1727455913375,-12482.80688796,0.0001178,2]
[339345152,1727455913386,-1181.93999887,0.0001178,2]
[339345153,1727455913684,-837.1615839,0.0001178,2]
[339345154,1727455913695,-12304.9185501,0.0001178,2]
[339345155,1727455913707,-1138.28203649,0.0001178,2]
[339345156,1727455913718,-1221.72,0.0001178,2]
[339345157,1727455913729,-456.80005735,0.0001178,2]
[339345158,1727455913740,-690.60504577,0.0001178,2]
[339345159,1727455913751,-1195.57080635,0.0001178,2]
[339345160,1727455913796,-1408.82174182,0.0001178,2]
[339345161,1727455913807,-3372.58381994,0.0001178,2]
[339345162,1727455913818,-270.462826,0.0001178,2]
[339345163,1727455913828,-1748.9835148,0.0001178,2]
[339345164,1727455913840,-305.0,0.0001178,2]
[339345165,1727455913851,-1073.61091901,0.0001178,2]
[339345166,1727455913867,-1408.2840103,0.0001178,2]
[339345167,1727455913879,-24220.98820134,0.0001178,2]
[339345168,1727455913888,-330.50167578,0.0001178,2]
[339345169,1727455913898,-1490.57,0.0001178,2]
[339345170,1727455913907,-1394.03,0.0001178,2]
[339345171,1727455913916,-2093.95,0.0001178,2]
[339345172,1727455913926,-762.19,0.0001178,2]
[339345173,1727455913935,-4191.87,0.0001178,2]
[339345174,1727455913945,-500.0,0.0001178,2]
[339345175,1727455913956,-65318.54,0.0001178,2]
[339345176,1727455913966,-1490.57,0.0001178,2]
[339345177,1727455913975,-1394.03,0.0001178,2]
[339345178,1727455913985,-762.19,0.0001178,2]
[339345179,1727455913994,-4191.87,0.0001178,2]
[339345180,1727455914004,-65318.54,0.0001178,2]
[339345181,1727455914013,-500.0,0.0001178,2]
[339345182,1727455914023,-1490.57,0.0001178,2]
[339345183,1727455914032,-4191.97241539,0.0001178,2]
[339345184,1727455914042,-762.19,0.0001178,2]
[339345185,1727455914052,-2093.95,0.0001178,2]
[339345186,1727455914061,-1394.03,0.0001178,2]
[339345187,1727455914071,-1490.57,0.0001178,2]
[339345188,1727455914080,-500.0,0.0001178,2]
[339345189,1727455914089,-65318.54,0.0001178,2]
[339345190,1727455914099,-762.19,0.0001178,2]
[339345191,1727455914109,-500.0,0.0001178,2]
[339345192,1727455914118,-1394.03,0.0001178,2]
[339345193,1727455914128,-2093.95,0.0001178,2]
[339345194,1727455914138,-500.0,0.0001178,2]
[339345195,1727455914148,-1490.68933383,0.0001178,2]
[339345196,1727455914157,-501.57073906,0.0001178,2]
[339345197,1727455914167,-1127.36,0.0001178,2]
[339345198,1727455914177,-32327.50702968,0.0001178,2]
[339345199,1727455914191,-2417.41677453,0.0001178,2]
[339345200,1727455914203,-2192.36880359,0.0001178,2]
[339345201,1727455914215,-1050.25519812,0.0001178,2]
[339345202,1727455914227,-2142.20599598,0.0001178,2]
[339345203,1727455914240,-2635.15652636,0.0001178,2]
[339345204,1727455914252,-22553.62967174,0.0001178,2]
[339345205,1727455914264,-762.19,0.0001178,2]
[339345206,1727455914274,-500.0,0.0001178,2]
[339345207,1727455914283,-1394.03,0.0001178,2]
[339345208,1727455914293,-2093.95,0.0001178,2]
[339345209,1727455914303,-500.0,0.0001178,2]
[339345210,1727455914313,-1127.36,0.0001178,2]
[339345211,1727455914322,-4220.66132191,0.0001178,2]
[339345212,1727455914338,-61097.87867809,0.0001178,2]
[339345213,1727455914348,-762.19,0.0001178,2]
[339345214,1727455914357,-500.0,0.0001178,2]
[339345215,1727455914367,-1394.03,0.0001178,2]
[339345216,1727455914376,-1127.36,0.0001178,2]
[339345217,1727455914386,-500.0,0.0001178,2]
[339345218,1727455914395,-2093.95,0.0001178,2]
[339345219,1727455914406,-65318.54,0.0001178,2]
[339345220,1727455914416,-762.42315485,0.0001178,2]
[339345221,1727455914425,-500.0,0.0001178,2]
[339345222,1727455914435,-1394.03,0.0001178,2]
[339345223,1727455914444,-500.0,0.0001178,2]
[339345224,1727455914453,-1127.36,0.0001178,2]
[339345225,1727455914464,-500.0,0.0001178,2]
[339345226,1727455914473,-65318.54,0.0001178,2]
[339345227,1727455914483,-2093.95,0.0001178,2]
[339345228,1727455914493,-500.0,0.0001178,2]
[339345229,1727455914503,-65318.54,0.0001178,2]
[339345230,1727455914513,-500.0,0.0001178,2]
[339345231,1727455914523,-2093.95,0.0001178,2]
[339345232,1727455914533,-1127.36,0.0001178,2]
[339345233,1727455914544,-500.0,0.0001178,2]
[339345234,1727455914554,-65318.54,0.0001178,2]
[339345235,1727455914563,-500.0,0.0001178,2]
[339345236,1727455914573,-2093.95,0.0001178,2]
[339345237,1727455914582,-1127.36,0.0001178,2]
[339345238,1727455914592,-500.0,0.0001178,2]
[339345239,1727455914601,-65318.54,0.0001178,2]
[339345240,1727455914611,-500.0,0.0001178,2]
[339345241,1727455914620,-1127.36,0.0001178,2]
[339345242,1727455914630,-2093.95,0.0001178,2]
[339345243,1727455914640,-1394.03,0.0001178,2]
[339345244,1727455914649,-500.0,0.0001178,2]
[339345245,1727455914660,-500.0,0.0001178,2]
[339345246,1727455914670,-2335.74,0.0001178,2]
[339345247,1727455914679,-65318.54,0.0001178,2]
[339345248,1727455914688,-1127.36,0.0001178,2]
[339345249,1727455914698,-2093.95,0.0001178,2]
[339345250,1727455914709,-500.0,0.0001178,2]
[339345251,1727455914719,-500.0,0.0001178,2]
[339345252,1727455914729,-1394.03,0.0001178,2]
[339345253,1727455914738,-500.0,0.0001178,2]
[339345254,1727455914748,-1127.36,0.0001178,2]
[339345255,1727455914758,-500.0,0.0001178,2]
[339345256,1727455914767,-2093.95,0.0001178,2]
[339345257,1727455914777,-2335.74,0.0001178,2]
[339345258,1727455914786,-500.0,0.0001178,2]
[339345259,1727455914796,-500.0,0.0001178,2]
[339345260,1727455914806,-1394.03,0.0001178,2]
[339345261,1727455914815,-65318.54,0.0001178,2]
[339345262,1727455914825,-500.0,0.0001178,2]
[339345263,1727455914835,-2093.95,0.0001178,2]
[339345264,1727455914845,-500.0,0.0001178,2]
[339345265,1727455914854,-1127.36,0.0001178,2]
[339345266,1727455914864,-500.0,0.0001178,2]
[339345267,1727455914874,-2335.74,0.0001178,2]
[339345268,1727455914884,-500.0,0.0001178,2]
[339345269,1727455914894,-1394.03,0.0001178,2]
[339345270,1727455914903,-500.0,0.0001178,2]
[339345271,1727455914913,-65318.54,0.0001178,2]
[339345272,1727455914923,-2093.95,0.0001178,2]
[339345273,1727455914932,-501.8442047,0.0001178,2]
[339345274,1727455914942,-546.94149886,0.0001178,2]
[339345275,1727455914952,-1127.36,0.0001178,2]
[339345276,1727455914965,-2335.74,0.0001178,2]
[339345277,1727455914975,-595.78497107,0.0001178,2]
[339345278,1727455914985,-1394.03,0.0001178,2]
[339345279,1727455914996,-2093.95,0.0001178,2]
[339345280,1727455915006,-52963.7740238,0.0001178,2]
[339345281,1727455915026,-5000.0,0.0001178,2]
[339345282,1727455915038,-2189.5392959,0.0001178,2]
[339345283,1727455915062,-5165.2266803,0.0001178,2]
[339345284,1727455915072,-1127.36,0.0001178,2]
[339345285,1727455915082,-1033.01,0.0001178,2]
[339345286,1727455915092,-2335.74,0.0001178,2]
[339345287,1727455915102,-210.09338087,0.0001178,2]
[339345288,1727455915112,-50457.15513433,0.0001178,2]
[339345289,1727455915125,-1141.6,0.0001178,2]
[339345290,1727455915137,-1710.75555846,0.0001178,2]
[339345291,1727455915149,-6646.89595268,0.0001178,2]
[339345292,1727455915162,-3827.9912898,0.0001178,2]
[339345293,1727455915174,-1534.14206473,0.0001178,2]
[339345294,1727455915184,-1033.01,0.0001178,2]
[339345295,1727455915194,-500.0,0.0001178,2]
[339345296,1727455915204,-1438.91052148,0.0001178,2]
[339345297,1727455915216,-655.15209638,0.0001178,2]
[339345298,1727455915226,-2335.74,0.0001178,2]
[339345299,1727455915236,-1078.65611015,0.0001178,2]
[339345300,1727455915248,-315.37388985,0.0001178,2]
[339345301,1727455915260,-1127.36,0.0001178,2]
[339345302,1727455915270,-500.0,0.0001178,2]
[339345303,1727455915279,-6681.26239414,0.0001178,2]
[339345304,1727455915292,-606.13570382,0.0001178,2]
[339345305,1727455915304,-447.63570258,0.0001178,2]
[339345306,1727455915316,-4427.48361733,0.0001178,2]
[339345307,1727455915329,-432.87434618,0.0001178,2]
[339345308,1727455915348,-1973.77783105,0.0001178,2]
[339345309,1727455915359,-4203.54536531,0.0001178,2]
[339345310,1727455915371,-926.66902096,0.0001178,2]
[339345311,1727455917608,176.82,0.00011084,2]
[339345312,1727456005457,250.0,0.00010992,2]
[339345313,1727456032522,350.11,0.00013918,30]
[339345314,1727456073652,232.28,9.009e-05,2]
[339345315,1727456099265,250.0,0.00010873,2]
[339345316,1727456111465,200.0,0.00010873,2]
[339345317,1727456133567,332.8,0.00010863,2]
[339345318,1727456146187,6395.0024031,0.00010863,2]
[339345319,1727456146213,17504.9975969,0.00010863,2]
[339345320,1727456153160,200.0,0.00010855,2]
[339345321,1727456254613,3428.02,0.00010863,2]
[339345322,1727456269036,2000.0,0.00010959,2]
[339345323,1727456274263,250.0,0.00010959,2]
[339345324,1727456274469,872.31,0.00010863,2]
[339345325,1727456300608,478.18,0.00010863,2]
[339345326,1727456319910,716.0,0.00010992,2]
[339345327,1727456331373,155.35,0.00010875,2]
[339345328,1727456386546,362.29,0.00010875,2]
[339345329,1727456400619,1050.0,0.00011,2]
[339345330,1727456550943,250.0,0.00010821,2]
[339345331,1727456566762,332.6,0.00013918,30]
[339345332,1727456634534,236.6,8.911e-05,2]
[339345333,1727456653227,250.0,0.00010819,2]
[339345334,1727456704665,840.0,0.00010819,2]
[339345335,1727456705216,160.07,0.00010959,2]
[339345336,1727456817846,436.15,0.0001082,2]
[339345337,1727456833415,7500.0,0.0001,2]
[339345415,1727456918703,150.0,0.0001111,2]
[339345416,1727456943626,598.47,0.00010855,2]
[339345448,1727457031734,-236.6,0.00011175,2]
[339345449,1727457031744,-150.0,0.00011517,2]
[339345450,1727457031753,-1698.175,0.00011518,2]
[339345451,1727457031765,-564.33772582,0.00011518,2]
[339345452,1727457031777,-28531.92427951,0.00011518,2]
[339345453,1727457031795,-663.67270921,0.00011518,2]
[339345454,1727457031807,-849.36959246,0.00011518,2]
[339345455,1727457031819,-6236.81216735,0.00011518,2]
[339345456,1727457031831,-1837.68576623,0.00011518,2]